[Event "23rd ETCC Women 2021"]
[Site "Catez"]
[Date "2021.11.21"]
[Round "9.46"]
[White "Medic, Mirjana"]
[Black "Klinova, Masha"]
[Result "1-0"]
[ECO "E62"]
[WhiteElo "2196"]
[BlackElo "2264"]
[Annotator "NA"]
[PlyCount "71"]
[EventDate "2021.11.08"]
[EventType "team-tourn"]
[EventCountry "SLO"]
[SourceTitle "playchess.com"]
[Source "ChessBase"]
[SourceQuality "1"]
[WhiteTeam "Croatia"]
[BlackTeam "Israel"]
[WhiteTeamCountry "CRO"]
[BlackTeamCountry "ISR"]
[TimeControl "40/5400+30:1800+30"]

1. d4 {[%emt 0:00:01]} d6 {[%emt 0:00:09]} 2. Nf3 {[%emt 0:00:08]} g6 {[%emt 0:
00:33]} 3. c4 {[%emt 0:00:38]} Nf6 {[%emt 0:00:13]} 4. g3 {[%emt 0:00:14]} Bg7
{[%emt 0:00:08]} 5. Bg2 {[%emt 0:00:07]} O-O {[%emt 0:00:06]} 6. O-O {[%emt 0:
00:04]} Nc6 {[%emt 0:00:22]} 7. Nc3 {[%emt 0:00:17]} e5 {[%emt 0:00:41]} 8. d5
{[%emt 0:00:24]} Ne7 {[%emt 0:00:11]} 9. Ne1 {[%emt 0:00:59]} Nd7 {[%emt 0:02:
24]} 10. Nd3 {[%emt 0:02:13]} f5 {[%emt 0:02:08]} 11. e4 {[%emt 0:00:12]} Nf6 {
[%emt 0:00:14]} 12. exf5 {[%emt 0:09:38]} Bxf5 {[%emt 0:05:48]} 13. f4 {
[%emt 0:04:17]} c6 {[%emt 0:05:12]} 14. dxc6 {[%emt 0:07:34]} Nxc6 {[%emt 0:08:
18]} 15. Nd5 {[%emt 0:11:01]} Nxd5 {[%emt 0:06:32]} 16. Bxd5+ {[%emt 0:06:42]}
Kh8 {[%emt 0:00:39]} 17. Be3 {[%emt 0:14:30]} Qe7 {[%emt 0:18:56]} 18. Qd2 {
[%emt 0:03:01]} Rae8 {[%emt 0:11:31]} 19. Rae1 {[%emt 0:02:42]} Bxd3 {[%emt 0:
02:39]} 20. Qxd3 {[%emt 0:00:06]} exf4 {[%emt 0:04:12]} 21. Bxf4 {[%emt 0:06:
11]} Qxe1 {[%emt 0:03:30]} 22. Rxe1 {[%emt 0:00:02]} Rxe1+ {[%emt 0:00:05]} 23.
Kg2 {[%emt 0:03:19]} Rfe8 {[%emt 0:03:41]} 24. Kh3 {[%emt 0:02:11]} Ne5 {
[%emt 0:07:15]} 25. Qd2 {[%emt 0:00:55]} Rb1 {[%emt 0:02:03]} 26. Qc2 {[%emt 0:
01:38]} Ra1 {[%emt 0:01:59]} 27. Qa4 {[%emt 0:01:01]} Rf8 {[%emt 0:02:04]} 28.
Qxa7 {[%emt 0:01:34]} Rb1 {[%emt 0:01:21]} 29. Qa3 {[%emt 0:01:01]} Nc6 {
[%emt 0:03:02]} 30. Qxd6 {[%emt 0:01:03]} Rxb2 {[%emt 0:00:48]} 31. a4 {
[%emt 0:04:33]} g5 {[%emt 0:03:02]} 32. Bxg5 {[%emt 0:01:26]} Rff2 {[%emt 0:01:
13]} 33. Bf4 {[%emt 0:01:18]} h5 {[%emt 0:01:48]} 34. Kh4 {[%emt 0:02:50]}
Rxh2+ {[%emt 0:00:05]} 35. Kg5 {[%emt 0:00:01]} h4 {[%emt 0:00:44]} 36. Qe6 {
[%emt 0:01:38]} 1-0

[Event "23rd ETCC Women 2021"]
[Site "Catez"]
[Date "2021.11.21"]
[Round "9.47"]
[White "Shapir, Maya"]
[Black "Berke, Ana"]
[Result "1-0"]
[ECO "E11"]
[WhiteElo "2256"]
[BlackElo "2135"]
[Annotator "NA"]
[PlyCount "75"]
[EventDate "2021.11.08"]
[EventType "team-tourn"]
[EventCountry "SLO"]
[SourceTitle "playchess.com"]
[Source "ChessBase"]
[SourceQuality "1"]
[WhiteTeam "Israel"]
[BlackTeam "Croatia"]
[WhiteTeamCountry "ISR"]
[BlackTeamCountry "CRO"]
[TimeControl "40/5400+30:1800+30"]

1. d4 {[%emt 0:00:35]} Nf6 {[%emt 0:00:07]} 2. c4 {[%emt 0:00:45]} e6 {[%emt 0:
00:06]} 3. Nf3 {[%emt 0:00:37]} Bb4+ {[%emt 0:00:05]} 4. Bd2 {[%emt 0:00:17]}
Qe7 {[%emt 0:00:31]} 5. g3 {[%emt 0:00:17]} Nc6 {[%emt 0:01:14]} 6. Bg2 {
[%emt 0:01:07]} Bxd2+ {[%emt 0:00:21]} 7. Nbxd2 {[%emt 0:00:05]} d6 {[%emt 0:
00:12]} 8. e4 {[%emt 0:01:22]} e5 {[%emt 0:00:21]} 9. d5 {[%emt 0:00:08]} Nb8 {
[%emt 0:00:04]} 10. O-O {[%emt 0:01:42]} O-O {[%emt 0:00:43]} 11. Ne1 {[%emt 0:
01:58]} a5 {[%emt 0:00:29]} 12. Nd3 {[%emt 0:01:07]} Na6 {[%emt 0:00:34]} 13.
Qc2 {[%emt 0:07:03]} Bd7 {[%emt 0:02:12]} 14. Rac1 {[%emt 0:08:18]} c6 {
[%emt 0:04:57]} 15. dxc6 {[%emt 0:08:43]} bxc6 {[%emt 0:04:51]} 16. c5 {
[%emt 0:03:37]} d5 {[%emt 0:01:44]} 17. a3 {[%emt 0:10:26]} Rab8 {[%emt 0:10:
58]} 18. Rfe1 {[%emt 0:01:29]} dxe4 {[%emt 0:10:05]} 19. Nxe4 {[%emt 0:01:57]}
Bf5 {[%emt 0:04:38]} 20. Qc4 {[%emt 0:02:44]} Nc7 {[%emt 0:05:15]} 21. Nxf6+ {
[%emt 0:05:20]} Qxf6 {[%emt 0:01:16]} 22. Nxe5 {[%emt 0:00:27]} Rxb2 {[%emt 0:
02:03]} 23. Qc3 {[%emt 0:02:14]} Ra2 {[%emt 0:07:36]} 24. Nxc6 {[%emt 0:02:11]}
Be6 {[%emt 0:01:27]} 25. Qxf6 {[%emt 0:01:40]} gxf6 {[%emt 0:00:05]} 26. Re3 {
[%emt 0:02:28]} Nb5 {[%emt 0:02:08]} 27. Ne7+ {[%emt 0:03:12]} Kg7 {[%emt 0:00:
23]} 28. c6 {[%emt 0:01:09]} Nd4 {[%emt 0:07:31]} 29. Bf1 {[%emt 0:12:05]} Re8
{[%emt 0:06:18]} 30. Bc4 {[%emt 0:15:29]} Rc2 {[%emt 0:09:40]} 31. Rxc2 {
[%emt 0:00:43]} Nxc2 {[%emt 0:00:04]} 32. Rxe6 {[%emt 0:01:14]} fxe6 {[%emt 0:
04:16]} 33. c7 {[%emt 0:00:07]} Nxa3 {[%emt 0:03:56]} 34. Bd3 {[%emt 0:00:30]}
e5 {[%emt 0:03:01]} 35. c8=Q {[%emt 0:01:14]} Rxc8 {[%emt 0:00:13]} 36. Nxc8 {
[%emt 0:00:02]} e4 {[%emt 0:00:09]} 37. Bxe4 {[%emt 0:00:11]} Nc4 {[%emt 0:00:
12]} 38. Bd5 {[%emt 0:00:39]} 1-0

[Event "23rd ETCC Women 2021"]
[Site "Catez"]
[Date "2021.11.21"]
[Round "9.48"]
[White "Vujnovic, Patricija"]
[Black "Katkov, Michelle"]
[Result "1/2-1/2"]
[ECO "C31"]
[WhiteElo "2151"]
[BlackElo "2059"]
[Annotator "NA"]
[PlyCount "122"]
[EventDate "2021.11.08"]
[EventType "team-tourn"]
[EventCountry "SLO"]
[SourceTitle "playchess.com"]
[Source "ChessBase"]
[SourceQuality "1"]
[WhiteTeam "Croatia"]
[BlackTeam "Israel"]
[WhiteTeamCountry "CRO"]
[BlackTeamCountry "ISR"]
[TimeControl "40/5400+30:1800+30"]

1. e4 {[%emt 0:00:02]} e5 {[%emt 0:00:08]} 2. f4 {[%emt 0:00:04]} d5 {[%emt 0:
01:22]} 3. exd5 {[%emt 0:00:18]} Qxd5 {[%emt 0:04:18]} 4. Nc3 {[%emt 0:03:44]}
Qe6 {[%emt 0:03:10]} 5. fxe5 {[%emt 0:06:20]} Qxe5+ {[%emt 0:04:05]} 6. Be2 {
[%emt 0:00:29]} Nc6 {[%emt 0:08:03]} 7. Nf3 {[%emt 0:01:01]} Qa5 {[%emt 0:02:
42]} 8. O-O {[%emt 0:13:36]} Be6 {[%emt 0:02:40]} 9. d4 {[%emt 0:09:35]} O-O-O
{[%emt 0:01:56]} 10. Be3 {[%emt 0:01:33]} Nf6 {[%emt 0:02:30]} 11. Kh1 {
[%emt 0:04:25]} Ng4 {[%emt 0:05:37]} 12. Bg1 {[%emt 0:01:36]} Qh5 {[%emt 0:03:
15]} 13. Ne4 {[%emt 0:01:45]} f5 {[%emt 0:05:57]} 14. Neg5 {[%emt 0:05:47]} Bg8
{[%emt 0:05:52]} 15. Bd3 {[%emt 0:13:32]} g6 {[%emt 0:01:38]} 16. c3 {[%emt 0:
07:17]} Bh6 {[%emt 0:08:00]} 17. Nh3 {[%emt 0:03:11]} Bd5 {[%emt 0:02:26]} 18.
b4 {[%emt 0:11:32]} Be3 {[%emt 0:10:17]} 19. Qa4 {[%emt 0:03:20]} Kb8 {[%emt 0:
06:17]} 20. b5 {[%emt 0:00:19]} Ne7 {[%emt 0:00:29]} 21. Rae1 {[%emt 0:00:58]}
Be4 {[%emt 0:03:55]} 22. Bxe4 {[%emt 0:03:59]} fxe4 {[%emt 0:00:12]} 23. Bxe3 {
[%emt 0:00:04]} exf3 {[%emt 0:00:45]} 24. Rxf3 {[%emt 0:00:11]} Nf5 {[%emt 0:
02:25]} 25. Bg1 {[%emt 0:03:29]} Nh4 {[%emt 0:01:47]} 26. Rf4 {[%emt 0:00:12]}
g5 {[%emt 0:01:05]} 27. Rfe4 {[%emt 0:00:33]} Nf6 {[%emt 0:01:20]} 28. Re5 {
[%emt 0:00:18]} Nf3 {[%emt 0:00:46]} 29. Nf4 {[%emt 0:02:29]} Qg4 {[%emt 0:01:
41]} 30. gxf3 {[%emt 0:01:12]} Qxf4 {[%emt 0:00:24]} 31. Qd1 {[%emt 0:00:24]}
Rhg8 {[%emt 0:01:31]} 32. Qe2 {[%emt 0:02:25]} g4 {[%emt 0:07:02]} 33. fxg4 {
[%emt 0:00:03]} Nxg4 {[%emt 0:00:09]} 34. Re4 {[%emt 0:00:12]} Qf5 {[%emt 0:00:
24]} 35. Rf1 {[%emt 0:01:06]} Qg5 {[%emt 0:00:51]} 36. c4 {[%emt 0:00:29]} h5 {
[%emt 0:00:53]} 37. d5 {[%emt 0:00:48]} h4 {[%emt 0:00:39]} 38. h3 {[%emt 0:00:
30]} Nf6 {[%emt 0:00:21]} 39. Re5 {[%emt 0:00:34]} Qg7 {[%emt 0:02:32]} 40. Re7
{[%emt 0:00:26]} Qg3 {[%emt 0:00:29]} 41. Bh2 {[%emt 0:30:35]} Nh5 {[%emt 0:02:
02]} 42. Bxg3 {[%emt 0:00:00]} Nxg3+ {[%emt 0:00:07]} 43. Kh2 {[%emt 0:00:00]}
Nxe2 {[%emt 0:00:18]} 44. Rxe2 {[%emt 0:00:00]} Rde8 {[%emt 0:02:35]} 45. Rxe8+
{[%emt 0:00:00]} Rxe8 {[%emt 0:00:05]} 46. Rf4 {[%emt 0:00:00]} Re2+ {[%emt 0:
02:57]} 47. Kg1 {[%emt 0:00:00]} b6 {[%emt 0:00:04]} 48. Rxh4 {[%emt 0:00:00]}
Rxa2 {[%emt 0:00:08]} 49. Re4 {[%emt 0:00:01]} a6 {[%emt 0:07:11]} 50. bxa6 {
[%emt 0:00:03]} Rxa6 {[%emt 0:00:21]} 51. h4 {[%emt 0:00:51]} b5 {[%emt 0:00:
36]} 52. c5 {[%emt 0:03:58]} Rh6 {[%emt 0:00:42]} 53. Kg2 {[%emt 0:00:34]} Rh5
{[%emt 0:01:45]} 54. d6 {[%emt 0:00:47]} cxd6 {[%emt 0:00:41]} 55. cxd6 {
[%emt 0:00:04]} Rd5 {[%emt 0:00:14]} 56. Re6 {[%emt 0:00:10]} Kc8 {[%emt 0:02:
12]} 57. Kf3 {[%emt 0:00:51]} Kd7 {[%emt 0:00:13]} 58. Rg6 {[%emt 0:00:27]} b4
{[%emt 0:01:31]} 59. Ke4 {[%emt 0:00:42]} Rb5 {[%emt 0:01:24]} 60. Kd3 {
[%emt 0:00:32]} b3 {[%emt 0:00:16]} 61. Rg1 {[%emt 0:00:08]} Kxd6 {[%emt 0:01:
31]} 1/2-1/2

[Event "23rd ETCC Women 2021"]
[Site "Catez"]
[Date "2021.11.21"]
[Round "9.49"]
[White "Toma, Katarzyna"]
[Black "Georgescu, Lena"]
[Result "1-0"]
[ECO "B23"]
[WhiteElo "2261"]
[BlackElo "2262"]
[Annotator "NA"]
[PlyCount "119"]
[EventDate "2021.11.08"]
[EventType "team-tourn"]
[EventCountry "SLO"]
[SourceTitle "playchess.com"]
[Source "ChessBase"]
[SourceQuality "1"]
[WhiteTeam "England"]
[BlackTeam "Switzerland"]
[WhiteTeamCountry "ENG"]
[BlackTeamCountry "SUI"]
[TimeControl "40/5400+30:1800+30"]

1. e4 {[%emt 0:00:02]} c5 {[%emt 0:00:06]} 2. Nc3 {[%emt 0:00:10]} d6 {[%emt 0:
00:04]} 3. d4 {[%emt 0:00:06]} cxd4 {[%emt 0:00:03]} 4. Qxd4 {[%emt 0:00:07]}
Nc6 {[%emt 0:00:03]} 5. Qd2 {[%emt 0:00:10]} g6 {[%emt 0:00:08]} 6. b3 {
[%emt 0:00:08]} Bh6 {[%emt 0:00:06]} 7. f4 {[%emt 0:00:08]} Nf6 {[%emt 0:00:20]
} 8. Bb2 {[%emt 0:00:25]} O-O {[%emt 0:00:09]} 9. O-O-O {[%emt 0:00:21]} e5 {
[%emt 0:00:07]} 10. g3 {[%emt 0:00:24]} Re8 {[%emt 0:00:15]} 11. Bg2 {[%emt 0:
00:16]} exf4 {[%emt 0:00:21]} 12. Kb1 {[%emt 0:02:02]} Bg4 {[%emt 0:01:46]} 13.
Bf3 {[%emt 0:12:34]} Bxf3 {[%emt 0:20:16]} 14. Nxf3 {[%emt 0:00:07]} Bg7 {
[%emt 0:00:20]} 15. Qxf4 {[%emt 0:07:02]} Qe7 {[%emt 0:14:22]} 16. Rhe1 {
[%emt 0:04:39]} Ne5 {[%emt 0:03:45]} 17. Nxe5 {[%emt 0:11:39]} dxe5 {[%emt 0:
02:15]} 18. Qf3 {[%emt 0:00:42]} Qe6 {[%emt 0:08:10]} 19. Nb5 {[%emt 0:08:33]}
Qc6 {[%emt 0:03:16]} 20. c4 {[%emt 0:00:19]} a6 {[%emt 0:06:30]} 21. Rd6 {
[%emt 0:02:34]} Qc8 {[%emt 0:04:03]} 22. Nc3 {[%emt 0:00:40]} Re6 {[%emt 0:00:
30]} 23. Red1 {[%emt 0:02:21]} Qc7 {[%emt 0:04:13]} 24. R6d3 {[%emt 0:08:19]}
Ree8 {[%emt 0:03:12]} 25. g4 {[%emt 0:04:26]} b5 {[%emt 0:04:02]} 26. cxb5 {
[%emt 0:01:28]} axb5 {[%emt 0:00:28]} 27. g5 {[%emt 0:01:25]} Nh5 {[%emt 0:02:
33]} 28. Rd7 {[%emt 0:02:58]} Qa5 {[%emt 0:00:50]} 29. Qxf7+ {[%emt 0:00:20]}
Kh8 {[%emt 0:00:04]} 30. Qd5 {[%emt 0:01:22]} Rab8 {[%emt 0:04:35]} 31. Qc5 {
[%emt 0:05:39]} Rec8 {[%emt 0:02:21]} 32. Ra7 {[%emt 0:04:48]} Qxa2+ {[%emt 0:
02:18]} 33. Kxa2 {[%emt 0:02:17]} Rxc5 {[%emt 0:00:05]} 34. Rdd7 {[%emt 0:00:
22]} Rcc8 {[%emt 0:01:26]} 35. Rab7 {[%emt 0:02:34]} Rxb7 {[%emt 0:04:18]} 36.
Rxb7 {[%emt 0:00:01]} Kg8 {[%emt 0:00:29]} 37. Rxb5 {[%emt 0:01:12]} Rf8 {
[%emt 0:00:06]} 38. Nd5 {[%emt 0:00:43]} Rf2 {[%emt 0:00:47]} 39. Rb8+ {
[%emt 0:00:41]} Kf7 {[%emt 0:03:41]} 40. b4 {[%emt 0:00:19]} Bf8 {[%emt 0:03:
16]} 41. Kb3 {[%emt 0:35:39]} Re2 {[%emt 0:34:03]} 42. Nc3 {[%emt 0:08:28]}
Rxh2 {[%emt 0:00:33]} 43. b5 {[%emt 0:00:22]} Nf4 {[%emt 0:00:00]} 44. b6 {
[%emt 0:00:00]} Bd6 {[%emt 0:00:00]} 45. Ra8 {[%emt 0:00:00]} Ne6 {[%emt 0:00:
00]} 46. Nb5 {[%emt 0:00:00]} Nc5+ {[%emt 0:00:00]} 47. Kc4 {[%emt 0:00:00]}
Nxe4 {[%emt 0:00:00]} 48. Ba3 {[%emt 0:00:00]} Bxa3 {[%emt 0:00:00]} 49. Rxa3 {
[%emt 0:00:00]} Rc2+ {[%emt 0:00:00]} 50. Nc3 {[%emt 0:00:00]} Nd6+ {[%emt 0:
04:12]} 51. Kd5 {[%emt 0:00:00]} Rd2+ {[%emt 0:00:05]} 52. Kc6 {[%emt 0:00:00]}
Ke6 {[%emt 0:00:26]} 53. Na4 {[%emt 0:00:00]} Nc4 {[%emt 0:01:24]} 54. Nc5+ {
[%emt 0:00:00]} Kf5 {[%emt 0:00:12]} 55. b7 {[%emt 0:00:00]} Rb2 {[%emt 0:00:
29]} 56. Nb3 {[%emt 0:00:00]} Rxb3 {[%emt 0:00:31]} 57. Rxb3 {[%emt 0:00:00]}
Na5+ {[%emt 0:00:02]} 58. Kd5 {[%emt 0:00:00]} Nxb7 {[%emt 0:00:07]} 59. Rxb7 {
[%emt 0:00:00]} Kxg5 {[%emt 0:00:13]} 60. Rxh7 {[%emt 0:00:00]} 1-0

[Event "23rd ETCC Women 2021"]
[Site "Catez"]
[Date "2021.11.21"]
[Round "9.50"]
[White "Hakimifard, Ghazal"]
[Black "Head, Louise"]
[Result "1-0"]
[ECO "B17"]
[WhiteElo "2267"]
[BlackElo "2069"]
[Annotator "NA"]
[PlyCount "79"]
[EventDate "2021.11.08"]
[EventType "team-tourn"]
[EventCountry "SLO"]
[SourceTitle "playchess.com"]
[Source "ChessBase"]
[SourceQuality "1"]
[WhiteTeam "Switzerland"]
[BlackTeam "England"]
[WhiteTeamCountry "SUI"]
[BlackTeamCountry "ENG"]
[TimeControl "40/5400+30:1800+30"]

1. e4 {[%emt 0:00:02]} c6 {[%emt 0:00:06]} 2. d4 {[%emt 0:00:04]} d5 {[%emt 0:
00:03]} 3. Nd2 {[%emt 0:00:04]} dxe4 {[%emt 0:00:07]} 4. Nxe4 {[%emt 0:00:03]}
Nd7 {[%emt 0:00:10]} 5. Bd3 {[%emt 0:00:10]} Ngf6 {[%emt 0:00:19]} 6. Ng5 {
[%emt 0:00:08]} e6 {[%emt 0:00:20]} 7. N1f3 {[%emt 0:00:09]} Bd6 {[%emt 0:03:
11]} 8. Qe2 {[%emt 0:00:11]} h6 {[%emt 0:00:38]} 9. Ne4 {[%emt 0:00:11]} Nxe4 {
[%emt 0:00:15]} 10. Qxe4 {[%emt 0:00:02]} Qc7 {[%emt 0:00:19]} 11. Bd2 {
[%emt 0:00:04]} b6 {[%emt 0:03:43]} 12. O-O-O {[%emt 0:00:10]} Bb7 {[%emt 0:16:
48]} 13. Qe2 {[%emt 0:00:05]} Bf4 {[%emt 0:04:24]} 14. Rhe1 {[%emt 0:16:05]}
O-O-O {[%emt 0:04:33]} 15. Ba6 {[%emt 0:03:07]} Bxd2+ {[%emt 0:11:58]} 16. Rxd2
{[%emt 0:00:08]} Qf4 {[%emt 0:00:47]} 17. Qc4 {[%emt 0:03:43]} Kb8 {[%emt 0:08:
45]} 18. Bxb7 {[%emt 0:00:25]} Kxb7 {[%emt 0:00:06]} 19. Re3 {[%emt 0:02:07]}
b5 {[%emt 0:09:53]} 20. Qb4 {[%emt 0:09:33]} a6 {[%emt 0:07:15]} 21. Ra3 {
[%emt 0:04:38]} Rhe8 {[%emt 0:03:12]} 22. Ne1 {[%emt 0:11:21]} f6 {[%emt 0:08:
44]} 23. Nd3 {[%emt 0:05:57]} Qc7 {[%emt 0:00:42]} 24. Re2 {[%emt 0:03:47]} Rc8
{[%emt 0:05:14]} 25. Qe1 {[%emt 0:05:07]} Qd6 {[%emt 0:02:16]} 26. Qa5 {
[%emt 0:08:56]} Ra8 {[%emt 0:01:08]} 27. Nb4 {[%emt 0:03:15]} Nb8 {[%emt 0:04:
18]} 28. Rae3 {[%emt 0:05:36]} Nd7 {[%emt 0:03:32]} 29. Nd3 {[%emt 0:00:47]}
Re7 {[%emt 0:00:51]} 30. f4 {[%emt 0:03:03]} Rae8 {[%emt 0:00:28]} 31. Qc3 {
[%emt 0:02:53]} Kb6 {[%emt 0:01:02]} 32. a4 {[%emt 0:01:51]} c5 {[%emt 0:00:35]
} 33. dxc5+ {[%emt 0:00:39]} Nxc5 {[%emt 0:00:07]} 34. a5+ {[%emt 0:00:07]} Kb7
{[%emt 0:01:00]} 35. Qxc5 {[%emt 0:00:15]} Qd8 {[%emt 0:00:11]} 36. Qb4 {
[%emt 0:01:01]} Rc7 {[%emt 0:00:16]} 37. Nc5+ {[%emt 0:00:27]} Ka8 {[%emt 0:01:
04]} 38. Nxe6 {[%emt 0:00:24]} Rxe6 {[%emt 0:00:22]} 39. Rxe6 {[%emt 0:00:02]}
Ka7 {[%emt 0:00:11]} 40. Re7 {[%emt 0:00:19]} 1-0

[Event "23rd ETCC Women 2021"]
[Site "Catez"]
[Date "2021.11.21"]
[Round "9.51"]
[White "Bayat, Shohreh"]
[Black "De Seroux, Camille"]
[Result "1/2-1/2"]
[ECO "B27"]
[WhiteElo "2091"]
[BlackElo "2125"]
[Annotator "NA"]
[PlyCount "155"]
[EventDate "2021.11.08"]
[EventType "team-tourn"]
[EventCountry "SLO"]
[SourceTitle "playchess.com"]
[Source "ChessBase"]
[SourceQuality "1"]
[WhiteTeam "England"]
[BlackTeam "Switzerland"]
[WhiteTeamCountry "ENG"]
[BlackTeamCountry "SUI"]
[TimeControl "40/5400+30:1800+30"]

1. e4 {[%emt 0:00:02]} c5 {[%emt 0:00:06]} 2. Nf3 {[%emt 0:00:02]} g6 {[%emt 0:
00:07]} 3. c3 {[%emt 0:00:25]} d5 {[%emt 0:00:18]} 4. e5 {[%emt 0:00:10]} Nc6 {
[%emt 0:15:53]} 5. d4 {[%emt 0:00:20]} Bg7 {[%emt 0:02:14]} 6. Be2 {[%emt 0:03:
33]} cxd4 {[%emt 0:05:04]} 7. cxd4 {[%emt 0:00:08]} Bg4 {[%emt 0:05:45]} 8. Nc3
{[%emt 0:01:51]} a6 {[%emt 0:01:58]} 9. O-O {[%emt 0:03:34]} e6 {[%emt 0:02:02]
} 10. Be3 {[%emt 0:10:21]} Nge7 {[%emt 0:02:21]} 11. Qd2 {[%emt 0:14:08]} Nf5 {
[%emt 0:02:11]} 12. Rad1 {[%emt 0:09:21]} O-O {[%emt 0:00:48]} 13. h3 {[%emt 0:
00:46]} Bxf3 {[%emt 0:00:25]} 14. Bxf3 {[%emt 0:00:01]} f6 {[%emt 0:04:29]} 15.
exf6 {[%emt 0:03:29]} Qxf6 {[%emt 0:08:52]} 16. Ne2 {[%emt 0:00:47]} Rac8 {
[%emt 0:01:22]} 17. Bg5 {[%emt 0:00:30]} Qf7 {[%emt 0:00:23]} 18. Be3 {[%emt 0:
02:03]} Nh4 {[%emt 0:03:20]} 19. Bg4 {[%emt 0:04:33]} h5 {[%emt 0:01:09]} 20.
Bg5 {[%emt 0:01:26]} Nxg2 {[%emt 0:01:54]} 21. Bxe6 {[%emt 0:02:55]} Qxe6 {
[%emt 0:00:15]} 22. Kxg2 {[%emt 0:00:06]} Qf5 {[%emt 0:12:36]} 23. Bh6 {
[%emt 0:07:38]} Qf3+ {[%emt 0:10:09]} 24. Kh2 {[%emt 0:00:27]} Rce8 {[%emt 0:
03:07]} 25. Ng1 {[%emt 0:09:46]} Bxh6 {[%emt 0:01:27]} 26. Qxh6 {[%emt 0:00:03]
} Qf4+ {[%emt 0:00:11]} 27. Qxf4 {[%emt 0:00:05]} Rxf4 {[%emt 0:00:03]} 28. Kg3
{[%emt 0:03:40]} Rxd4 {[%emt 0:01:21]} 29. Nf3 {[%emt 0:03:13]} Rxd1 {[%emt 0:
02:20]} 30. Rxd1 {[%emt 0:00:02]} Re2 {[%emt 0:06:24]} 31. Rxd5 {[%emt 0:01:03]
} Rxb2 {[%emt 0:00:15]} 32. Rd7 {[%emt 0:00:50]} Kf8 {[%emt 0:01:59]} 33. a4 {
[%emt 0:02:43]} Rb3 {[%emt 0:01:27]} 34. Rd5 {[%emt 0:04:13]} Ra3 {[%emt 0:01:
34]} 35. Kf4 {[%emt 0:02:39]} Rxa4+ {[%emt 0:01:13]} 36. Kg5 {[%emt 0:00:10]}
Ra3 {[%emt 0:02:16]} 37. Nh4 {[%emt 0:01:48]} Ne7 {[%emt 0:00:33]} 38. Nxg6+ {
[%emt 0:01:33]} Nxg6 {[%emt 0:00:23]} 39. Kxg6 {[%emt 0:00:02]} Rxh3 {[%emt 0:
00:54]} 40. Rd7 {[%emt 0:02:22]} b5 {[%emt 0:00:17]} 41. f4 {[%emt 0:31:16]} h4
{[%emt 0:07:38]} 42. f5 {[%emt 0:00:00]} Rg3+ {[%emt 0:13:12]} 43. Kf6 {
[%emt 0:00:00]} Kg8 {[%emt 0:01:22]} 44. Rd8+ {[%emt 0:00:00]} Kh7 {[%emt 0:00:
06]} 45. Rd4 {[%emt 0:00:00]} h3 {[%emt 0:03:39]} 46. Kf7 {[%emt 0:00:00]} Kh6
{[%emt 0:01:00]} 47. f6 {[%emt 0:00:00]} Kg5 {[%emt 0:02:12]} 48. Rd5+ {
[%emt 0:00:00]} Kg4 {[%emt 0:01:18]} 49. Rd4+ {[%emt 0:00:00]} Kf5 {[%emt 0:00:
55]} 50. Rh4 {[%emt 0:00:00]} a5 {[%emt 0:02:47]} 51. Rh5+ {[%emt 0:00:00]} Kg4
{[%emt 0:00:18]} 52. Kg6 {[%emt 0:00:00]} Kf3+ {[%emt 0:01:17]} 53. Kh6 {
[%emt 0:00:12]} Kg2 {[%emt 0:00:35]} 54. f7 {[%emt 0:00:37]} Rf3 {[%emt 0:00:
16]} 55. Rg5+ {[%emt 0:01:56]} Kf2 {[%emt 0:00:37]} 56. Kg7 {[%emt 0:00:25]} h2
{[%emt 0:00:55]} 57. Rh5 {[%emt 0:00:29]} Kg2 {[%emt 0:00:47]} 58. Rg5+ {
[%emt 0:00:44]} Rg3 {[%emt 0:00:32]} 59. Rxg3+ {[%emt 0:00:42]} Kxg3 {[%emt 0:
00:02]} 60. f8=Q {[%emt 0:00:07]} h1=Q {[%emt 0:00:07]} 61. Qd6+ {[%emt 0:03:
01]} Kg4 {[%emt 0:00:53]} 62. Qe6+ {[%emt 0:01:00]} Kf4 {[%emt 0:00:20]} 63.
Qd6+ {[%emt 0:00:14]} Ke3 {[%emt 0:00:37]} 64. Qc5+ {[%emt 0:00:45]} Kd2 {
[%emt 0:00:20]} 65. Qd6+ {[%emt 0:04:01]} Ke2 {[%emt 0:00:48]} 66. Qe5+ {
[%emt 0:00:29]} Kf2 {[%emt 0:00:26]} 67. Qd4+ {[%emt 0:00:38]} Kg3 {[%emt 0:00:
31]} 68. Qe5+ {[%emt 0:00:46]} Kg4 {[%emt 0:00:21]} 69. Qe6+ {[%emt 0:01:05]}
Kf4 {[%emt 0:00:15]} 70. Qf6+ {[%emt 0:00:48]} Ke3 {[%emt 0:00:06]} 71. Qc3+ {
[%emt 0:00:04]} Kf2 {[%emt 0:00:18]} 72. Qd2+ {[%emt 0:00:31]} Kg1 {[%emt 0:00:
25]} 73. Qe1+ {[%emt 0:01:06]} Kg2 {[%emt 0:00:46]} 74. Qe4+ {[%emt 0:00:19]}
Kh2 {[%emt 0:00:05]} 75. Qh4+ {[%emt 0:00:08]} Kg1 {[%emt 0:00:10]} 76. Qe1+ {
[%emt 0:00:05]} Kg2 {[%emt 0:00:04]} 77. Qe4+ {[%emt 0:00:04]} Kh2 {[%emt 0:00:
03]} 78. Qh4+ {[%emt 0:00:05]} 1/2-1/2